bitfinex-derivatives/quotes_BTCF0:USTF0_20241231
["timestamp","ask_amount","ask_price","bid_price","bid_amount"]
[1735658185834,0.052481,95411.0,95410.0,0.052481]
[1735658187744,0.055481,95411.0,95410.0,0.052481]
[1735658188245,0.052481,95411.0,95410.0,0.052481]
[1735658188447,0.057481,95411.0,95410.0,0.052481]
[1735658188740,0.005,95411.0,95410.0,0.052481]
[1735658189249,0.18651597,95421.0,95420.0,0.052475]
[1735658189439,0.18651597,95421.0,95420.0,0.413275]
[1735658190340,0.00157275,95426.0,95425.0,0.052473]
[1735658190542,0.05404475,95426.0,95425.0,0.413273]
[1735658191247,0.00157275,95426.0,95425.0,0.413273]
[1735658191749,0.18651597,95439.0,95438.0,0.052465]
[1735658191942,0.23898097,95439.0,95438.0,0.774065]
[1735658192251,0.18651597,95439.0,95438.0,0.774065]
[1735658193252,0.18651597,95451.0,95450.0,0.052459]
[1735658193552,0.18651597,95451.0,95450.0,0.413259]
[1735658194549,0.052458,95452.0,95450.0,0.413259]
[1735658195138,0.004,95451.0,95450.0,0.413259]
[1735658195943,0.052455,95458.0,95454.0,0.052456]
[1735658196148,0.052455,95458.0,95455.0,0.052456]
[1735658196349,0.052455,95458.0,95456.0,0.052455]
[1735658196739,0.00157216,95460.0,95459.0,0.052454]
[1735658198245,0.05402516,95460.0,95459.0,0.052454]
[1735658198753,0.00157216,95460.0,95459.0,0.052454]
[1735658199056,0.00557216,95460.0,95459.0,0.052454]
[1735658200051,0.004,95460.0,95459.0,0.052454]
[1735658201345,0.002,95460.0,95459.0,0.052454]
[1735658202049,0.01135705,95473.0,95454.0,0.01114639]
[1735658202251,0.052446,95473.0,95472.0,0.3608]
[1735658203842,0.052434,95495.0,95472.0,0.3608]
[1735658204037,0.052439,95487.0,95486.0,0.052439]
[1735658204239,0.0989,95494.0,95481.0,0.3608]
[1735658204443,0.052436,95491.0,95490.0,0.3608]
[1735658206059,0.061436,95491.0,95490.0,0.3618]
[1735658208749,0.009,95491.0,95490.0,0.775037]
[1735658209061,0.009,95491.0,95490.0,0.78618946]
[1735658209255,0.1,95500.0,95499.0,0.052432]
[1735658209553,0.1,95500.0,95499.0,0.413232]
[1735658210251,0.28311597,95536.0,95499.0,0.3608]
[1735658210449,0.052424,95514.0,95513.0,0.052423]
[1735658210645,0.052424,95514.0,95513.0,0.3608]
[1735658211857,0.060424,95514.0,95513.0,0.3618]
[1735658213061,0.07169421,95514.0,95513.0,0.3618]
[1735658213663,0.07169421,95514.0,95513.0,0.414224]
[1735658214071,0.01927021,95514.0,95513.0,0.414224]
[1735658214253,0.008,95514.0,95513.0,0.414224]
[1735658215255,0.052423,95515.0,95514.0,0.052423]
[1735658215457,0.052423,95515.0,95514.0,0.3608]
[1735658215763,0.052427,95508.0,95490.0,0.052436]
[1735658215956,0.052439,95487.0,95486.0,0.3608]
[1735658216463,0.052444,95477.0,95476.0,0.3608]
[1735658217049,0.052451,95465.0,95464.0,0.413251]
[1735658217356,0.01155564,95477.0,95464.0,0.3608]
[1735658217557,0.052447,95473.0,95472.0,0.052446]
[1735658217756,0.052446,95476.0,95475.0,0.052445]
[1735658217964,0.052446,95473.0,95472.0,0.3608]
[1735658218156,0.052446,95473.0,95472.0,0.413247]
[1735658219256,0.052446,95473.0,95472.0,0.3608]
[1735658219457,0.052446,95473.0,95472.0,0.3638]
[1735658220460,0.3113191,95473.0,95454.0,0.3608]
[1735658220657,0.052456,95455.0,95454.0,0.3608]
[1735658220859,0.05245,95466.0,95452.0,0.3608]
[1735658221062,0.3608,95467.0,95443.0,0.3608]
[1735658221063,0.052462,95445.0,95444.0,0.052462]
[1735658222763,0.053462,95445.0,95444.0,0.061462]
[1735658223268,0.001,95445.0,95444.0,0.061462]
[1735658223460,0.001,95445.0,95444.0,0.422262]
[1735658224063,0.001,95445.0,95444.0,1.922262]
[1735658224260,0.001,95445.0,95444.0,1.913262]
[1735658224562,0.12356098,95452.0,95451.0,0.052458]
[1735658225159,0.052453,95461.0,95460.0,0.052453]
[1735658225366,0.052453,95461.0,95460.0,0.413253]
[1735658225567,0.052453,95461.0,95460.0,0.3608]
[1735658225965,0.052457,95453.0,95452.0,0.3608]
[1735658226863,0.052457,95453.0,95434.0,0.3608]
[1735658226864,0.052467,95435.0,95434.0,0.3608]
[1735658227771,0.003,95461.0,95460.0,0.052453]
[1735658228070,0.003,95461.0,95460.0,0.3608]
[1735658228464,0.37200929,95466.0,95451.0,0.3608]
[1735658228766,0.052455,95458.0,95457.0,0.052455]
[1735658229460,0.052458,95453.0,95451.0,0.413258]
[1735658229661,0.052458,95453.0,95451.0,0.3608]
[1735658229862,0.052454,95459.0,95458.0,0.052454]
[1735658230066,0.052454,95459.0,95457.0,0.052455]
[1735658230666,0.052454,95459.0,95451.0,0.3608]
[1735658230667,0.1242181,95460.0,95451.0,0.3608]
[1735658230863,0.1242181,95460.0,95459.0,0.413254]
[1735658231973,0.12421571,95472.0,95471.0,0.052447]
[1735658232160,0.12421571,95472.0,95471.0,0.413247]
[1735658233169,0.17666271,95472.0,95471.0,0.3608]
[1735658233367,0.17666271,95472.0,95459.0,0.3618]
[1735658233368,0.052453,95460.0,95459.0,0.001]
[1735658234168,0.05246,95448.0,95447.0,0.18812178]
[1735658234874,0.052454,95459.0,95445.0,0.052461]
[1735658234875,0.052461,95446.0,95445.0,0.052461]
[1735658235561,0.57437679,95460.0,95421.0,0.3608]
[1735658235562,0.0110352,95449.0,95421.0,0.3608]
[1735658235770,0.05247,95429.0,95421.0,0.3608]
[1735658237960,0.052474,95422.0,95421.0,0.3608]
[1735658238159,0.052478,95416.0,95407.0,0.3608]
[1735658238360,0.052482,95408.0,95407.0,0.3608]
[1735658239363,0.4554,95419.0,95400.0,0.1]
[1735658239364,0.052486,95401.0,95400.0,0.1]
[1735658240274,0.052495,95385.0,95380.0,0.052497]
[1735658240674,0.3608,95403.0,95378.0,0.7216]
[1735658240978,0.052491,95392.0,95391.0,0.3608]
[1735658242275,0.052491,95392.0,95391.0,0.3618]
[1735658243069,0.16917552,95410.0,95391.0,0.3618]
[1735658243070,0.052485,95403.0,95391.0,0.3618]
[1735658243269,0.00148,95411.0,95402.0,0.3608]
[1735658243567,0.15498103,95414.0,95413.0,0.052479]
[1735658244265,0.15498103,95414.0,95410.0,0.3608]
[1735658244465,0.05348,95411.0,95410.0,0.3608]
[1735658245079,0.05248,95411.0,95410.0,0.3608]
[1735658245979,0.05448,95411.0,95410.0,0.3608]
[1735658247279,0.052485,95403.0,95402.0,0.3608]
[1735658247975,0.052492,95389.0,95388.0,0.3608]
[1735658248475,0.052496,95383.0,95382.0,0.3608]
[1735658250080,0.052496,95383.0,95382.0,0.413296]
[1735658250273,0.052496,95383.0,95382.0,0.3608]
[1735658250671,0.06374979,95383.0,95382.0,0.3608]
[1735658251182,0.052505,95366.0,95365.0,0.3608]
[1735658251681,0.052505,95366.0,95348.0,0.3608]
[1735658251682,0.052512,95354.0,95353.0,0.052512]
[1735658252067,0.052514,95349.0,95348.0,0.3608]
[1735658252479,0.052515,95348.0,95339.0,0.3608]
[1735658252779,0.052519,95340.0,95339.0,0.3608]
[1735658253387,0.052519,95340.0,95339.0,0.41332]
[1735658253674,0.01118213,95361.0,95349.0,0.052514]
[1735658253880,0.052506,95365.0,95358.0,0.3608]
[1735658254085,0.57290679,95370.0,95349.0,0.413314]
[1735658254270,0.052514,95350.0,95349.0,0.413314]
[1735658254981,0.052514,95350.0,95349.0,0.414314]
[1735658255381,0.01088775,95370.0,95349.0,0.3618]
[1735658255680,0.052502,95372.0,95371.0,0.052502]
[1735658256477,0.15498103,95393.0,95371.0,0.3608]
[1735658256684,0.15812379,95390.0,95376.0,0.052499]
[1735658256985,0.21849781,95393.0,95371.0,0.3608]
[1735658256986,0.21849781,95393.0,95379.0,0.052498]
[1735658257174,0.15812379,95390.0,95373.0,0.052501]
[1735658257481,0.052501,95374.0,95373.0,0.052501]
[1735658258071,0.15812379,95390.0,95373.0,0.052501]
[1735658258583,0.15812379,95390.0,95372.0,0.052502]
[1735658258780,0.01102678,95393.0,95385.0,0.3608]
[1735658259083,0.003,95390.0,95385.0,0.3608]
[1735658259882,0.052494,95386.0,95385.0,0.3608]
[1735658262186,0.052498,95379.0,95374.0,0.0525]
[1735658262485,0.006,95386.0,95374.0,0.3608]
[1735658262677,0.058494,95386.0,95385.0,0.3608]
[1735658262879,0.0525,95375.0,95374.0,0.3608]
[1735658263084,0.052495,95385.0,95362.0,0.3608]
[1735658263281,0.052501,95374.0,95373.0,0.3608]
[1735658264183,0.01120994,95390.0,95373.0,0.3608]
[1735658264379,0.052493,95388.0,95387.0,0.052494]
[1735658264690,0.15498103,95400.0,95387.0,0.3608]
[1735658264981,0.20746703,95400.0,95399.0,0.3608]
[1735658265382,0.15498103,95400.0,95399.0,0.413287]
[1735658265689,0.052485,95404.0,95403.0,0.052485]
[1735658265988,0.15498103,95405.0,95399.0,0.3608]
[1735658265989,0.052486,95400.0,95399.0,0.3608]
[1735658267483,0.054486,95400.0,95399.0,0.3608]
[1735658267683,0.054486,95400.0,95399.0,0.413287]
[1735658268090,0.054486,95400.0,95399.0,0.3608]
[1735658268583,0.055486,95400.0,95399.0,0.3608]
[1735658270992,0.055486,95400.0,95366.0,0.18812178]
[1735658270993,0.052498,95379.0,95378.0,0.3608]
[1735658271192,0.052505,95367.0,95366.0,0.18812178]
[1735658271885,0.413298,95379.0,95360.0,0.3608]
[1735658271886,0.052508,95361.0,95360.0,0.3608]
[1735658273990,0.053508,95361.0,95360.0,0.3608]
[1735658274495,0.052517,95345.0,95337.0,0.3608]
[1735658274796,0.052517,95345.0,95340.0,0.052519]
[1735658274980,0.052517,95345.0,95343.0,0.052518]
[1735658275187,0.052517,95345.0,95337.0,0.413321]
[1735658275387,0.052517,95345.0,95338.0,0.05252]
[1735658275686,0.052517,95345.0,95337.0,0.3608]
[1735658275994,0.052517,95345.0,95344.0,0.413317]
[1735658276189,0.15498103,95360.0,95351.0,0.052513]
[1735658276389,0.15498103,95360.0,95354.0,0.3608]
[1735658276690,0.052511,95355.0,95354.0,0.413311]
[1735658277080,0.052511,95355.0,95354.0,0.3608]
[1735658278891,0.052511,95355.0,95354.0,0.413312]
[1735658279090,0.052511,95355.0,95354.0,0.3608]
[1735658279486,0.052511,95355.0,95354.0,0.413312]
[1735658281097,0.052511,95355.0,95354.0,0.3608]
[1735658281291,0.052511,95355.0,95354.0,0.413312]
[1735658281491,0.052509,95360.0,95359.0,0.052508]
[1735658281885,0.15498103,95364.0,95363.0,0.052507]
[1735658282287,0.20748603,95366.0,95365.0,0.052506]
[1735658282497,0.20748603,95366.0,95365.0,0.3608]
[1735658283407,0.15498103,95366.0,95365.0,0.413306]
[1735658283893,0.15498103,95371.0,95370.0,0.052503]
[1735658284096,0.07592337,95378.0,95370.0,0.413303]
[1735658284291,0.21664464,95391.0,95390.0,0.052492]
[1735658284488,0.21664464,95391.0,95390.0,0.413292]
[1735658284895,0.1857401,95397.0,95396.0,0.052489]
[1735658285101,0.21669678,95414.0,95413.0,0.052479]
[1735658285289,0.21669678,95414.0,95413.0,0.774079]
[1735658286101,0.0976,95435.0,95413.0,0.774079]
[1735658286291,0.150067,95435.0,95434.0,0.3608]
[1735658286997,0.16082444,95435.0,95434.0,0.3608]
[1735658287902,0.10835744,95435.0,95432.0,0.3608]
[1735658288104,0.11435744,95435.0,95432.0,0.3608]
[1735658288298,0.11435744,95435.0,95418.0,0.3608]
[1735658288299,0.052476,95419.0,95418.0,0.3608]
[1735658289090,0.052468,95433.0,95418.0,0.3608]
[1735658289407,0.052469,95432.0,95431.0,0.052468]
[1735658290703,0.057469,95432.0,95431.0,0.052468]
[1735658292798,0.052472,95427.0,95426.0,0.3608]
[1735658293413,0.052472,95427.0,95426.0,0.413272]
[1735658294001,0.056472,95427.0,95426.0,0.413272]
[1735658294506,0.052485,95402.0,95401.0,0.3608]
[1735658295010,0.052489,95395.0,95394.0,0.3608]
[1735658295614,0.052498,95379.0,95378.0,0.18812178]
[1735658295806,0.15812379,95388.0,95376.0,0.3608]
[1735658296007,0.052499,95377.0,95376.0,0.3608]
[1735658297497,0.055499,95377.0,95376.0,0.3608]
[1735658297702,0.055499,95377.0,95376.0,0.4133]
[1735658297905,0.003,95377.0,95376.0,0.4133]
[1735658298414,0.055499,95377.0,95376.0,0.4133]
[1735658298617,0.055499,95377.0,95376.0,0.3608]
[1735658298913,0.055499,95377.0,95366.0,0.3608]
[1735658298914,0.052505,95367.0,95366.0,0.3608]
[1735658299111,0.052517,95347.0,95346.0,0.052516]
[1735658299508,0.052518,95342.0,95341.0,0.3608]
[1735658300115,0.099,95359.0,95341.0,0.3608]
[1735658300300,0.052509,95360.0,95355.0,0.052511]
[1735658300500,0.052512,95354.0,95350.0,0.3608]
[1735658300707,0.052512,95354.0,95352.0,0.052512]
[1735658301209,0.052513,95351.0,95350.0,0.3608]
[1735658301414,0.05251,95357.0,95355.0,0.052511]
[1735658302300,0.05251,95357.0,95356.0,1.5]
[1735658302910,0.05251,95357.0,95339.0,0.052519]
[1735658302911,0.3608,95357.0,95349.0,0.3608]
[1735658303119,0.052514,95350.0,95349.0,0.3608]
[1735658304015,0.06324107,95350.0,95349.0,0.3608]
[1735658305015,0.052514,95350.0,95349.0,0.3608]
[1735658305206,0.3608,95357.0,95356.0,0.052511]
[1735658305409,0.41331,95357.0,95356.0,1.552511]
[1735658305916,0.15812379,95366.0,95356.0,1.5]
[1735658306107,0.052504,95369.0,95365.0,0.052505]
[1735658306307,0.052504,95369.0,95368.0,0.3608]
[1735658307413,0.055504,95369.0,95368.0,0.3608]
[1735658308013,0.055504,95369.0,95353.0,0.052512]
[1735658308213,0.003,95369.0,95350.0,0.3608]
[1735658308420,0.052508,95362.0,95358.0,0.3608]
[1735658308620,0.003,95369.0,95358.0,0.3608]
[1735658308819,0.052509,95362.0,95361.0,0.052507]
[1735658309414,0.052509,95359.0,95358.0,0.3608]
[1735658309915,0.052513,95351.0,95350.0,0.3608]
[1735658310215,0.052518,95343.0,95342.0,0.413318]
[1735658310412,0.052518,95343.0,95342.0,0.3608]
[1735658310609,0.052518,95343.0,95342.0,0.413318]
[1735658311626,0.052516,95348.0,95347.0,0.052515]
[1735658315714,0.052512,95353.0,95352.0,0.052511]
[1735658315925,0.052512,95353.0,95352.0,0.413311]
[1735658317918,0.052508,95361.0,95360.0,0.052507]
[1735658318122,0.052504,95369.0,95360.0,0.413307]
[1735658318423,0.052504,95369.0,95368.0,0.052504]
[1735658320015,0.052504,95369.0,95368.0,0.413304]
[1735658320220,0.054504,95369.0,95368.0,0.413304]
[1735658320726,0.002,95369.0,95368.0,0.413304]
[1735658321019,0.3608,95375.0,95368.0,0.413304]
[1735658321020,0.413301,95375.0,95374.0,0.052501]
[1735658322014,0.052501,95375.0,95374.0,0.052501]
[1735658322820,0.01064681,95378.0,95368.0,0.3608]
[1735658323025,0.01107337,95396.0,95377.0,0.3608]
[1735658323223,0.01080234,95402.0,95392.0,0.3608]
[1735658323422,0.052486,95401.0,95400.0,0.413286]
[1735658324021,0.11258308,95405.0,95404.0,0.052484]
[1735658324225,0.06316708,95405.0,95404.0,0.052484]
[1735658325128,0.06316708,95405.0,95400.0,0.3608]
[1735658325129,0.052486,95401.0,95379.0,0.3608]
[1735658325326,0.052497,95380.0,95379.0,0.3608]
[1735658325517,0.052497,95380.0,95379.0,0.413298]
[1735658326016,0.052497,95380.0,95369.0,0.3608]
[1735658326216,0.052503,95370.0,95369.0,0.3608]
[1735658326422,0.3608,95370.0,95356.0,0.01063429]
[1735658326633,0.052511,95356.0,95355.0,0.18812178]
[1735658327127,0.052515,95348.0,95347.0,0.052515]
[1735658327919,0.3608,95352.0,95351.0,0.052513]
[1735658328721,0.37155741,95352.0,95351.0,0.052513]
[1735658329032,0.3608,95352.0,95351.0,0.052513]
[1735658329935,0.3608,95362.0,95361.0,0.052508]
[1735658330224,0.37143277,95370.0,95347.0,0.3608]
[1735658330434,0.37143277,95370.0,95337.0,0.83104]
[1735658330435,0.052512,95354.0,95353.0,0.052512]
[1735658331216,0.3608,95362.0,95361.0,0.052508]
[1735658332224,0.414307,95362.0,95361.0,0.052508]
[1735658333724,0.3618,95362.0,95361.0,0.052508]
[1735658338422,0.001,95362.0,95361.0,0.052508]
[1735658338730,0.3608,95380.0,95379.0,0.052498]
[1735658339436,0.3608,95390.0,95389.0,0.052492]
[1735658340030,0.06309219,95395.0,95394.0,0.05249]
[1735658340426,0.01060319,95395.0,95394.0,0.05249]
[1735658340628,0.052487,95400.0,95385.0,0.052494]
[1735658340832,0.052487,95400.0,95399.0,0.052487]
[1735658341132,0.11149044,95401.0,95400.0,0.052486]
[1735658341332,0.1006,95401.0,95400.0,0.052486]
[1735658341729,0.36228,95405.0,95404.0,0.052484]
[1735658341930,0.37149638,95405.0,95404.0,0.052484]
[1735658342725,0.42398038,95405.0,95404.0,0.052484]
[1735658343232,0.43198038,95405.0,95404.0,0.052484]
[1735658346232,0.43198038,95405.0,95391.0,0.052491]
[1735658346233,0.052485,95403.0,95369.0,0.3608]
[1735658346535,0.3608,95383.0,95362.0,0.24954967]
[1735658346840,0.3608,95375.0,95374.0,0.052501]
[1735658347041,0.052499,95377.0,95370.0,0.15812379]
[1735658347235,0.052499,95377.0,95376.0,0.0525]
[1735658349828,0.003,95377.0,95376.0,0.0525]
[1735658350142,0.3608,95403.0,95402.0,0.052485]
[1735658351541,0.3608,95403.0,95394.0,0.052489]
[1735658351733,0.052491,95395.0,95394.0,0.052489]
[1735658352139,0.052487,95400.0,95399.0,0.052485]
[1735658352446,0.3608,95403.0,95402.0,0.052485]
[1735658352633,0.005,95403.0,95393.0,0.3608]
[1735658352833,0.005,95403.0,95402.0,0.052485]
[1735658353546,0.052481,95411.0,95410.0,0.052481]
[1735658354338,0.052484,95406.0,95405.0,0.052483]
[1735658355537,0.052486,95400.0,95399.0,0.001]
[1735658355742,0.3608,95400.0,95375.0,0.3608]
[1735658356043,0.052497,95381.0,95380.0,0.052497]
[1735658356445,0.0525,95376.0,95375.0,0.0525]
[1735658358734,0.3608,95381.0,95364.0,0.0946]
[1735658358934,0.052503,95370.0,95369.0,0.052503]
[1735658359640,0.002,95376.0,95360.0,0.15812379]
[1735658359844,0.052501,95375.0,95374.0,0.0525]
[1735658360752,0.052494,95387.0,95386.0,0.052493]
[1735658361342,0.052491,95392.0,95388.0,0.052493]
[1735658361545,0.0974,95399.0,95388.0,0.052493]
[1735658361838,0.052489,95397.0,95388.0,0.052493]
[1735658362041,0.05249,95394.0,95388.0,0.052493]
[1735658362241,0.06317823,95396.0,95388.0,0.052493]
[1735658362442,0.052489,95396.0,95388.0,0.052493]
[1735658363248,0.37140665,95400.0,95384.0,0.3608]
[1735658363447,0.3608,95400.0,95399.0,0.052487]
[1735658364158,0.3608,95409.0,95408.0,0.052482]
[1735658365454,0.413281,95409.0,95408.0,0.052482]
[1735658366044,0.420281,95409.0,95408.0,0.052482]
[1735658366349,0.420281,95409.0,95403.0,0.052484]
[1735658366350,0.052486,95404.0,95403.0,0.052484]
[1735658368446,0.3678,95409.0,95408.0,0.052482]
[1735658368955,0.3608,95409.0,95408.0,0.052482]
[1735658369659,0.3608,95409.0,95399.0,0.15812379]
[1735658369660,0.007,95409.0,95405.0,0.052483]
[1735658369956,0.007,95409.0,95408.0,0.052482]
[1735658370257,0.052472,95427.0,95423.0,0.052474]
[1735658371252,0.052473,95425.0,95423.0,0.052474]
[1735658371956,0.01088293,95431.0,95423.0,0.052474]
[1735658372251,0.1024,95438.0,95437.0,0.052466]
[1735658372443,0.16566852,95438.0,95437.0,0.052466]
[1735658372648,0.05247,95431.0,95430.0,0.05247]
[1735658372844,0.05247,95431.0,95423.0,0.3618]
[1735658372845,0.052473,95424.0,95423.0,0.001]
[1735658373044,0.413273,95424.0,95423.0,0.001]
[1735658373251,0.3608,95424.0,95403.0,0.3608]
[1735658373445,0.052479,95415.0,95414.0,0.052478]
[1735658373655,0.052475,95420.0,95419.0,0.052475]
[1735658374544,0.3608,95424.0,95423.0,0.052474]
[1735658375751,0.3638,95424.0,95423.0,0.052474]
[1735658376251,0.003,95424.0,95423.0,0.052474]
[1735658376554,0.01068787,95427.0,95426.0,0.052472]
[1735658376759,0.052471,95429.0,95411.0,0.3608]
[1735658376944,0.052471,95429.0,95427.0,0.052471]
[1735658377149,0.052471,95429.0,95428.0,0.052471]
[1735658378056,0.3608,95433.0,95419.0,0.15844773]
[1735658378254,0.413268,95433.0,95432.0,0.052469]
[1735658378955,0.052472,95427.0,95426.0,0.052472]
[1735658379161,0.052469,95432.0,95431.0,0.052469]
[1735658379659,0.37467009,95433.0,95413.0,0.052479]
[1735658379954,0.052472,95427.0,95426.0,0.052471]
[1735658382051,0.054472,95427.0,95426.0,0.052471]
[1735658382750,0.002,95427.0,95408.0,0.052482]
[1735658382965,0.002,95427.0,95403.0,0.413284]
[1735658382966,0.3608,95424.0,95403.0,0.413284]
[1735658383145,0.3608,95416.0,95415.0,0.052478]
[1735658383461,0.3608,95416.0,95392.0,0.0963]
[1735658383847,0.052483,95406.0,95403.0,0.052485]
[1735658384049,0.3608,95416.0,95391.0,0.37171194]
[1735658384355,0.052482,95408.0,95406.0,0.052483]
[1735658384654,0.052483,95407.0,95406.0,0.052483]
[1735658385555,0.052483,95407.0,95391.0,0.37171194]
[1735658385556,0.3608,95416.0,95391.0,0.37171194]
[1735658385862,0.05248,95413.0,95412.0,0.052479]
[1735658386358,0.37133248,95416.0,95391.0,0.37171194]
[1735658386546,0.054483,95407.0,95406.0,0.052483]
[1735658387152,0.002,95407.0,95406.0,0.052483]
[1735658387361,0.002,95407.0,95391.0,0.37171194]
[1735658387362,0.05248,95411.0,95410.0,0.052481]
[1735658388062,0.003,95413.0,95412.0,0.05248]
[1735658388966,0.052477,95418.0,95417.0,0.052475]
[1735658390560,0.055477,95418.0,95417.0,0.052475]
[1735658391858,0.055477,95418.0,95388.0,0.3608]
[1735658391859,0.003,95418.0,95388.0,0.3608]
[1735658392063,0.05249,95394.0,95393.0,0.05249]
[1735658392368,0.3608,95403.0,95389.0,0.052492]
[1735658392369,0.052492,95390.0,95389.0,0.052492]
[1735658394366,0.413289,95395.0,95394.0,0.05249]
[1735658395157,0.42405244,95395.0,95394.0,0.05249]
[1735658396270,0.3608,95395.0,95394.0,0.05249]
[1735658396570,0.3608,95403.0,95402.0,0.052485]
[1735658397071,0.052479,95413.0,95412.0,0.052479]
[1735658398162,0.3608,95415.0,95414.0,0.052479]
[1735658400162,0.3628,95415.0,95414.0,0.052479]
[1735658401574,0.052488,95401.0,95400.0,0.052485]
[1735658401774,0.413288,95401.0,95400.0,0.052485]
[1735658403074,0.3608,95401.0,95400.0,0.052485]
[1735658403667,0.052482,95409.0,95408.0,0.05248]
[1735658404364,0.0994,95414.0,95394.0,0.3608]
[1735658404568,0.052487,95401.0,95400.0,0.052486]
[1735658405067,0.052483,95406.0,95405.0,0.052483]
[1735658405258,0.3608,95407.0,95405.0,0.052483]
[1735658405459,0.3608,95417.0,95416.0,0.052478]
[1735658405675,0.052474,95423.0,95422.0,0.052474]
[1735658407673,0.056474,95423.0,95422.0,0.052474]
[1735658408176,0.052478,95418.0,95417.0,0.052477]
[1735658408376,0.004,95423.0,95417.0,0.052477]
[1735658408672,0.004,95423.0,95422.0,0.052474]
[1735658409273,0.0105137,95434.0,95422.0,0.052474]
[1735658409577,0.3608,95436.0,95435.0,0.052467]
[1735658409766,0.37147173,95436.0,95435.0,0.052467]
[1735658409962,0.42393873,95436.0,95435.0,0.052467]
[1735658411176,0.43093873,95436.0,95435.0,0.001]
[1735658411374,0.43093873,95436.0,95403.0,0.052485]
[1735658411685,0.3608,95410.0,95403.0,0.052485]
[1735658412177,0.3608,95410.0,95409.0,0.052481]
[1735658412376,0.052476,95420.0,95419.0,0.052475]
[1735658412565,0.3608,95421.0,95414.0,0.052479]
[1735658412767,0.3608,95421.0,95420.0,0.052475]
[1735658412968,0.052468,95434.0,95433.0,0.052467]
[1735658413162,0.052468,95434.0,95420.0,0.052475]
[1735658413373,0.3608,95429.0,95412.0,0.3608]
[1735658413580,0.003,95420.0,95413.0,0.052479]
[1735658413766,0.003,95420.0,95419.0,0.052476]
[1735658414381,0.003,95434.0,95433.0,0.052468]
[1735658414578,0.003,95434.0,95433.0,0.413268]
[1735658414876,0.003,95434.0,95433.0,0.052468]
[1735658415871,0.3608,95442.0,95441.0,0.052464]
[1735658417481,0.3628,95442.0,95429.0,0.05247]
[1735658417670,0.3628,95442.0,95418.0,0.052476]
[1735658417671,0.3608,95430.0,95418.0,0.052476]
[1735658417872,0.3608,95419.0,95398.0,0.18812178]
[1735658418073,0.3608,95419.0,95400.0,0.052486]
[1735658418271,0.3608,95419.0,95398.0,0.18812178]
[1735658418580,0.3608,95405.0,95396.0,0.052489]
[1735658418879,0.3608,95405.0,95404.0,0.052484]
[1735658419965,0.052481,95410.0,95396.0,0.01340192]
[1735658420172,0.3608,95419.0,95418.0,0.052477]
[1735658420770,0.052471,95428.0,95410.0,0.052481]
[1735658420969,0.052471,95428.0,95427.0,0.052471]
[1735658421379,0.052471,95428.0,95417.0,0.052477]
[1735658421380,0.3608,95429.0,95409.0,0.01043598]
[1735658421671,0.052474,95423.0,95422.0,0.052473]
[1735658422981,0.052473,95425.0,95424.0,0.052473]
[1735658424280,0.06304954,95425.0,95424.0,0.052473]
[1735658424680,0.052473,95424.0,95396.0,0.052488]
[1735658424870,0.3608,95415.0,95409.0,0.052481]
[1735658425075,0.052482,95410.0,95409.0,0.052481]
[1735658426484,0.053482,95410.0,95409.0,0.052481]
[1735658427080,0.001,95410.0,95409.0,0.052481]
[1735658428388,0.002,95410.0,95409.0,0.413281]
[1735658428777,0.002,95410.0,95409.0,1.913281]
[1735658429185,0.052468,95433.0,95428.0,0.052471]
[1735658429578,0.3608,95429.0,95428.0,0.052471]
[1735658430387,0.06305609,95438.0,95437.0,0.052466]
[1735658430388,0.01059009,95438.0,95437.0,0.052466]
[1735658430686,0.3608,95439.0,95438.0,0.052466]
[1735658432577,0.416265,95439.0,95438.0,0.052466]
[1735658432882,0.3638,95439.0,95438.0,0.052466]
[1735658433291,0.3618,95439.0,95438.0,0.052466]
[1735658434787,0.3608,95439.0,95438.0,0.052466]
[1735658435090,0.3618,95439.0,95438.0,0.052466]
[1735658435483,0.414265,95439.0,95438.0,0.052466]
[1735658435684,0.3618,95439.0,95438.0,0.052466]
[1735658436481,0.3608,95439.0,95438.0,0.052466]
[1735658436684,0.3618,95439.0,95438.0,0.052466]
[1735658437883,0.3608,95456.0,95455.0,0.052456]
[1735658438386,0.27854311,95467.0,95466.0,0.05245]
[1735658439184,0.33099311,95467.0,95466.0,0.05245]
[1735658439593,0.052456,95456.0,95455.0,0.3608]
[1735658439789,0.3608,95456.0,95440.0,0.10565517]
[1735658439993,0.3608,95444.0,95428.0,0.48078172]
[1735658440289,0.3608,95444.0,95428.0,0.522391]
[1735658440290,0.05247,95431.0,95428.0,0.522391]
[1735658440484,0.3608,95435.0,95423.0,0.052474]
[1735658440689,0.3608,95424.0,95423.0,0.052474]
[1735658440986,0.3608,95424.0,95410.0,0.10565517]
[1735658441192,0.413273,95424.0,95411.0,0.05248]
[1735658441394,0.413273,95424.0,95410.0,0.10565517]
[1735658441588,0.413273,95424.0,95422.0,0.052474]
[1735658441790,0.052474,95423.0,95422.0,0.052474]
[1735658442090,0.052474,95423.0,95405.0,0.052484]
[1735658442297,0.052486,95402.0,95399.0,0.46984]
[1735658442486,0.052487,95399.0,95397.0,0.052488]
[1735658442679,0.052487,95399.0,95398.0,0.052488]
[1735658443087,0.06290504,95405.0,95401.0,0.052485]
[1735658443285,0.052484,95404.0,95401.0,0.052485]
[1735658443490,0.052484,95404.0,95390.0,0.01082873]
[1735658443689,0.3608,95407.0,95390.0,0.01082873]
[1735658443883,0.3608,95407.0,95390.0,0.1164839]
[1735658444196,0.3608,95407.0,95390.0,0.01082873]